Cogmind - Beta 15 @@@ ROGUE MODE // 2025.10.19 @ 13:52:16 Player: Bean Result: Destroyed by as-73623 with Assembled F-torch Performance ------------- Evolutions (0) 0 Regions Visited (2) 400 Robots Destroyed (20) 100 Value Destroyed (555) 555 Prototype IDs (0) 0 Alien Tech Used (0) 0 Bonus (39) 39 TOTAL SCORE: 1094 Bonus ------- Follower Combat Kills 39 Cogmind --------- Core Integrity 0/250 Matter 285/300 Energy 237/250 System Corruption 3% Temperature Cool (74) Movement Treading (160) Location -10/Mines Parts ------- > --- POWER (1) -------- Ion Engine > --- PROPULSION (2) --- Improved Treads Improved Treads > --- UTILITY (2) ------ Improved Heat Sink Small Storage Unit > --- WEAPON (2) ------- Particle Cannon Particle Cannon > --- INVENTORY (8) ---- Light Ion Engine Sensor Array Particle Cannon Peak State ------------ > --- POWER ------------ Light Nuclear Core > --- PROPULSION ------- Improved Treads Improved Treads > --- UTILITY ---------- Improved Heat Sink Small Storage Unit > --- WEAPON ----------- Particle Cannon Particle Cannon > --- INVENTORY -------- Ion Engine Light Ion Engine Improved Treads Improved Treads Particle Cannon Particle Cannon Grenade Launcher [Rating: 16] Favorites ----------- Power Light Nuclear Core Engine Ion Engine Power Core Light Nuclear Core Propulsion Improved Treads Treads Improved Treads Leg Aluminum Leg Utility Small Storage Unit Device Improved Heat Sink Storage Small Storage Unit Weapon Particle Cannon Energy Cannon Particle Cannon Ballistic Gun Assault Rifle Launcher Grenade Launcher Build | -11 -10 -10 ------- Run | Yrd Mat Min Slots Evolved . | . . . Power . | . . . Propulsion . | . . . Utility . | . . . Weapon . | . . . Parts Attached 19 | 6 11 2 Power 4 | 1 3 . Engine 2 | 1 1 . Core 2 | . 2 . Reactor . | . . . Propulsion 6 | 2 2 2 Treads 4 | . 2 2 Leg 2 | 2 . . Wheel . | . . . Hover . | . . . Flight . | . . . Utility 3 | 1 2 . Device 2 | . 2 . Storage 1 | 1 . . Processor . | . . . Hackware . | . . . Protection . | . . . Artifact . | . . . Weapon 6 | 2 4 . Energy Gun . | . . . Energy Cannon 3 | . 3 . Ballistic Gun 2 | 2 . . Ballistic Cannon . | . . . Launcher 1 | . 1 . Special Weapon . | . . . Impact Weapon . | . . . Slashing Weapon . | . . . Piercing Weapon . | . . . Special Melee Weapon . | . . . Unidentified Prototypes . | . . . Parts Lost 6 | . 1 5 Power 1 | . . 1 Propulsion 2 | . . 2 Utility 1 | . 1 . Weapon 2 | . . 2 Highest Loss Streak 2 | . 1 2 To Critical Strikes . | . . . Average Backups 6 | 1 6 7 Power 1 | . 1 1 Propulsion 1 | . 1 1 Utility . | . . 1 Weapon 2 | 1 2 2 Tool/Special . | . . . Unused Backups 6 | 2 1 3 Power 1 | . . 1 Propulsion 2 | 2 . . Utility 1 | . . 1 Weapon 2 | . 1 1 Tool/Special . | . . . Average Slot Usage (%) 97 | . 97 99 Engine 4 | . 2 8 Core 9 | . 11 4 Treads 23 | . 22 28 Leg 4 | . 5 . Device 11 | . 11 14 Storage 14 | . 14 14 Energy Cannon 21 | . 21 18 Ballistic Gun 4 | . 6 . Launcher 2 | . . 9 Peak Build Rating 16 | 6 16 16 Average Rating 12 | 3 13 13 On Entrance 7 | . 6 16 Naked Turns . | . . . Heaviest Build 19 | 12 19 19 Greatest Support 46 | 20 46 46 Greatest Overweight (x) . | . . . Average Overweight (x) . | . . . Largest Inventory Capacity 8 | 8 8 8 Average Capacity 7 | 6 8 8 Most Carried 8 | 4 8 8 Average Carried 6 | 1 6 7 Final Capacity 8 | 8 8 8 Final Carried 8 | 2 8 3 Class Distribution -------------------- 100% | Mutant Dominant Class ---------------- Mutant | -10/Materials Mutant | -10/Mines Resources | -11 -10 -10 ----------- Run | Yrd Mat Min Matter Collected 567 | 257 245 65 Remotely . | . . . Salvage Created 636 | . 433 203 Parts 32 | . 20 12 Haulers Intercepted . | . . . Recyclers Shooed . | . . . Parts Field Recycled . | . . . Retrieved Matter . | . . . Parts Self-Destructed . | . . . Prevented . | . . . Kills | -11 -10 -10 ------- Run | Yrd Mat Min Combat Hostiles Destroyed 21 | . 9 12 Guns 2 | . 2 . Cannons 12 | . 6 6 AOE 7 | . 1 6 Classes Destroyed 6 | . 2 4 Builder 1 | . . 1 Watcher 2 | . 2 . Swarmer 6 | . . 6 Grunt 10 | . 9 1 Demolisher 1 | . . 1 Assembled 4 | . . 4 Best Kill Streak 3 | . 3 3 Combat Bots Only 3 | . 2 3 Max Kills in Single Turn 3 | . 2 3 Gunslinging . | . . . Exploded 3 | . 1 3 Melee . | . . . Uniques/NPCs Destroyed . | . . . Combat | -11 -10 -10 -------- Run | Yrd Mat Min Hostile Shots Fired 81 | . 40 41 Missed 20 | . 7 13 Hits 61 | . 33 28 Melee 6 | . . 6 Projectile 55 | . 33 22 AOE 4 | . . 4 Critical Strikes 2 | . 1 1 Damage Taken 1288 | . 559 729 Core 252 | . 107 145 Absorbed by Shields . | . . . Core Remaining (%) 100 | 100 . . Volleys Fired 55 | . 39 16 Largest 2 | . 2 2 Hottest 136 | . 136 136 Shots Fired 109 | . 78 31 Gun 26 | . 26 . Cannon 80 | . 51 29 Launcher 3 | . 1 2 Special . | . . . Kinetic 26 | . 26 . Thermal 80 | . 51 29 Explosive 3 | . 1 2 Electromagnetic . | . . . Robot Hit Streak 11 | . 11 6 Robot Miss Streak 8 | . 8 8 Penetration Max . | . . . Secondary Targets . | . . . Shots Hit Robots 59 | . 43 16 Core Hits 31 | . 16 15 Critical Kills 1 | . 1 . Critical Parts Destroyed . | . . . Critical Strikes 1 | . 1 . Destroy 1 | . 1 . Melee Attacks . | . . . Impact . | . . . Slashing . | . . . Piercing . | . . . Sneak Attacks . | . . . Combat Hostiles . | . . . Follow-up Attacks . | . . . Damage Inflicted 1532 | . 910 622 Guns 238 | . 238 . Cannons 908 | . 556 352 Explosions 375 | . 105 270 Melee . | . . . Ramming 11 | . 11 . Kinetic 238 | . 238 . Thermal 908 | . 556 352 Explosive 375 | . 105 270 Electromagnetic . | . . . Impact . | . . . Slashing . | . . . Piercing . | . . . Highest Corruption 3 | . 2 3 Average Corruption 2 | . 2 2 Corruption Purged . | . . . Corruption Blocked . | . . . Effects 14 | . 9 5 Message Errors 6 | . 2 4 Matter Fused 4 | . 4 . Heat Flow Errors 1 | . . 1 Energy Discharges 1 | . 1 . Data Loss (minor) 1 | . 1 . Misfires 1 | . 1 . Overload Shots . | . . . Overflow Damage 22 | . 10 12 Projectiles 11 | . . 11 Explosions 11 | . 10 1 Melee . | . . . Knockbacks 1 | . 1 . Impact 1 | . 1 . Kinetic . | . . . Secondary . | . . . Self-Inflicted Damage 83 | . 43 40 Shots 3 | . 1 2 Rammed 1 | . 1 . Targets Rammed 1 | . 1 . Kicked . | . . . Crushed . | . . . Highest Temperature 436 | . 436 144 Average Temperature 127 | . 154 60 Received Heat Transfer 355 | . 270 85 Effects 3 | . 3 . Shutdowns 2 | . 2 . Energy Bleed 1 | . 1 . Siege Activations . | . . . Martial Activations . | . . . Shielding Activations . | . . . Robots Disrupted . | . . . Combat Hostiles . | . . . Robots Corrupted . | . . . Combat Hostiles . | . . . Parts Fried . | . . . Impact Corruptions . | . . . Robots Melted . | . . . Combat Hostiles . | . . . Parts Melted 1 | . . 1 Heat Transferred 1628 | . 999 629 Parts Sabotaged . | . . . Parts Stolen . | . . . Parts Stripped . | . . . Power Chain Reactions . | . . . Alert | -11 -10 -10 ------- Run | Yrd Mat Min Maximum Alert Level . | . . . Low Security (%) 100 | 100 100 100 Level 1 . | . . . Level 2 . | . . . Level 3 . | . . . Level 4 . | . . . Level 5 . | . . . High Security . | . . . Max Security . | . . . Peak Influence 134 | . 78 134 Initial . | . . . Average 26 | . 14 63 Influence Increases 535 | . 270 265 Destroy 0b10 Robot/C 360 | . 180 180 Destroy 0b10 Robot/NC 15 | . 10 5 Destroy Leader 94 | . 54 40 Allied During Kill 6 | . . 6 Destroy Structure 30 | . 11 19 Lose Combat Pursuer 30 | . 15 15 Influence Decreases 535 | . 270 265 Time Decay 474 | . 260 214 Lost Part 41 | . 10 31 Lost Ally 20 | . . 20 Squads Dispatched 1 | . 1 . Investigation . | . . . Extermination . | . . . Reinforcement 1 | . 1 . Assault . | . . . Garrison . | . . . Intercept . | . . . Searches Triggered . | . . . Construction Impeded . | . . . Haulers Reinforced . | . . . Active Scanning Responses . | . . . Cargo Convoy Interrupts . | . . . Stealth | -11 -10 -10 --------- Run | Yrd Mat Min Distress Signals 1 | . 1 . Communications Jammed . | . . . Distress Signals . | . . . Times Spotted 38 | . 21 17 Peak Tracking Total 5 | . 3 5 Tactical Retreats 2 | . 1 1 Traps | -11 -10 -10 ------- Run | Yrd Mat Min Traps Triggered 3 | . 3 . Indirectly . | . . . Trap Hack Attempts . | . . . Triggered . | . . . Disarmed . | . . . Reprogrammed . | . . . Reused 1 | . . 1 Traps Extracted . | . . . Installed 1 | . . 1 Triggered . | . . . Most Traps Carried 1 | . . 1 Machines | -11 -10 -10 ---------- Run | Yrd Mat Min Machines Disabled . | . . . Max in Single Turn . | . . . Machines Repaired . | . . . Machines Dismantled . | . . . Machines Sabotaged . | . . . Overloaded Fab Kills . | . . . Hacking | -11 -10 -10 --------- Run | Yrd Mat Min Machines Accessed 1 | . 1 . Terminals . | . . . Fabricators . | . . . Repair Stations . | . . . Recycling Units 1 | . 1 . Scanalyzers . | . . . Garrison Access . | . . . Total Hacks 2 | . 2 . Successful 1 | . 1 . Failed 1 | . 1 . Catastrophic . | . . . Database Lockouts . | . . . Manual 2 | . 2 . Terminals . | . . . Fabricators . | . . . Repair Stations . | . . . Recycling Units 2 | . 2 . Scanalyzers . | . . . Garrison Access . | . . . Terminal Hacks . | . . . Fabricator Hacks . | . . . Repair Station Hacks . | . . . Recycling Unit Hacks . | . . . Scanalyzer . | . . . Garrison Access Hacks . | . . . Unauthorized Hacks 1 | . 1 . Terminals . | . . . Fabricators . | . . . Repair Stations . | . . . Recycling Units 1 | . 1 . Reject 1 | . 1 . Scanalyzers . | . . . Garrison Access . | . . . Data Cores Recovered . | . . . Used . | . . . Hacking Detections . | . . . Full Trace Events . | . . . Feedback Events . | . . . Feedback Blocked . | . . . Robot Schematics Acquired . | . . . Robots Built . | . . . Authchips . | . . . Time . | . . . Total Robot Build Rating . | . . . Part Schematics Acquired . | . . . Parts Built . | . . . Authchips . | . . . Time . | . . . Total Part Build Rating . | . . . Parts Repaired . | . . . Time . | . . . Parts Recycled . | . . . Recycled Matter . | . . . Retrieved Matter . | . . . Retrieved Components . | . . . Parts Scanalyzed . | . . . Part Schematics Acquired . | . . . Parts Damaged . | . . . Bothacking | -11 -10 -10 ------------ Run | Yrd Mat Min Used RIF Installer . | . . . Robots Hacked . | . . . Non-combat . | . . . Combat . | . . . Robot Hacks Applied . | . . . Relay Couplers Released . | . . . Fabnet Peak Effective % . | . . . Robots Rewired . | . . . Allies Hacked . | . . . Hacks Repelled . | . . . Allies | -11 -10 -10 -------- Run | Yrd Mat Min Total Allies 2 | . . 2 Largest Group 2 | . . 2 Highest-Rated Group 50 | . . 50 Highest-Rated Ally 31 | . . 31 Total Orders . | . . . Ally Attacks 8 | . . 8 Total Damage 125 | . . 125 Kills 4 | . . 4 Allies Corrupted . | . . . Allies Melted . | . . . Intel | -11 -10 -10 ------- Run | Yrd Mat Min Active Infowar (turns) . | . . . Robot Analysis Total . | . . . Derelict Logs Recovered 1 | . . 1 Drone Launches . | . . . Drone Recoveries . | . . . Exploration | -11 -10 -10 ------------- Run | Yrd Mat Min Turns Passed 1766 | 68 1243 455 Spaces Moved 965 | 48 680 237 Core 9 | 9 . . Treads 778 | . 541 237 Legs 178 | 39 139 . Wheels . | . . . Hover . | . . . Flight . | . . . Fastest Speed 50 | 50 120 160 Average Speed 151 | 106 151 160 Slowest Speed 160 | 120 160 160 Overloaded Moves . | . . . Propulsion Burnouts . | . . . Robots Hopped . | . . . Potential Cave-ins 2 | . . 2 Cave-ins Triggered . | . . . Exploration Rate (%) 51 | 4 95 54 Regions Visited 2 Branch Regions 1 Pre-discovered Areas . | . . . Known Exits Taken . | . . . Unknown Exits Taken 2 | 1 1 . Scrap Searched 1 | . . 1 Spaces Dug 7 | . 7 . Terrain Destroyed 26 | . 7 19 Melee . | . . . Projectile . | . . . AOE 26 | . 7 19 Terrain Rammed . | . . . Walls Destroyed . | . . . Machines Disabled . | . . . Actions | -11 -10 -10 --------- Run | Yrd Mat Min Total 1159 | 65 812 282 Wait 73 | . 55 18 Move 963 | 47 679 237 Hop . | . . . Pick Up 26 | 10 15 1 Fast Attach . | . . . Attach 13 | 6 2 5 Detach . | . . . Swap 13 | . 10 3 Drop 10 | 2 7 1 Fire 55 | . 39 16 Melee . | . . . Ram . | . . . Kick . | . . . Crush 1 | . 1 . Escape Stasis . | . . . Rewire 4 | . 4 . Trap 1 | . . 1 Miscellaneous . | . . . Route ------- -11/Scrapyard -10/Materials (discovered 4 exits: [*Mat x3] / [*Min]) -10/Mines (discovered 1 exit: [*Mat]) History --------- Turn | Location | Event 5 | -11/Scrapyard | Discovered new exit (range 14) 69 | -11/Scrapyard | Entered Materials 296 | -10/Materials | Discovered new exit (range 15) 313 | -10/Materials | Build established: Mutant 401 | -10/Materials | Discovered new exit (range 15) 862 | -10/Materials | Discovered new exit (range 9) 1288 | -10/Materials | Discovered new exit (range 16) 1312 | -10/Materials | Entered Mines 1315 | -10/Mines | Met a Derelict bent on vengeance 1442 | -10/Mines | Discovered new exit (range 3) 1451 | -10/Mines | Core integrity fell below 50% 1575 | -10/Mines | Found a hidden stash of uninstalled traps 1664 | -10/Mines | Assembled infested the area 1669 | -10/Mines | Assisted by a Guerilla fighting off Assembled 1700 | -10/Mines | Core integrity fell below 20% 1767 | -10/Mines | Destroyed by as-73623 with Assembled F-torch Last Messages --------------- The unstable cave ceiling collapses. K-01 Serf collects debris. as-08298 destroyed. K-01 Serf collects debris. Particle Cannon destroyed. Dropped Proton Bomb Trap. K-01 Serf collects debris. Installed Proton Bomb Trap. as-41859 triggered Proton Bomb Trap. A bubble of electromagnetic force engulfs the area. ET-RT7(z) destroyed. Destroyed Asb. Hover Unit. as-41859 destroyed. K-01 Serf collects debris. Imp. Treads destroyed. D:S XWLWNKLUQAJLDEIDO4# as-17406 destroyed. K-01 Serf collects debris. T-07 Excavator is excavating. Map ----- +----------------------------------------------------+ | ??????????????????????????????????????????# | | ??????????????????????????????????????????# #### | | ???????????????????????????????????????????????# | | ?????????????????????#?????????????????????????# | | ?????????????????????# ??????###????? ?????????# | | ????????????????????## ????## ##???# #???# #### | | ????????????????????# ???# ##??# #???# | | ????????????????????# #??# ##?# #???####### | | ????????????????????? ### #?# #??????#### | | ??????????????????????? * #?# #??????# | | ????????????????????????? * ### #??????# | | ?????????????????????#???## ## ######?# # | | ?????????????????????# ?## ### # | | ?????????????????????# ## ## # | | ????????????????????## # ## # | | ????????????????????# ## #?# # | | ?????????????????# ### = %# ##?# # | | ?????????????????# *%= %% # # #??# # | | ??????????? ###?###### # ## #### # | | ??????????? ????# # #### # | | ??????????? ##### == #??####### # | | ??????????# ####%= #????????########## | | ???????????? ##%###?????????????????? | | ?????????????""" aa #?????????????????? | | ?????????????""" a%%%#?????????????????? | | ?????????????""" @#### #?????????????????? | | ???????????# ##??? #?????????????????? | | ?????????# ????? #?????????????????? | | ??????????#t ?????? #?????????????????? | | ??????????####### ???????#?????????????????? | | ????????????????## ??????????????????????????? | | ?????????????????#####??????????????????????????? | | ????????????????????????????????????????????????? | | ????????????????????????????????????????????????? | | ????????????????????????????????????????????????? | | ????????????????????????????????????????????????? | | ????????????????????????????????????????????????? | | ????????????????????????????????????????????????? | | ????????????????????????????????????????????????? | | ????????????????????????????????????????????????? | | ????????????????????????????????????????????????? | | ????????????????????????????????????????????????? | | ????????????????????????????????????????????????? | | ????????????????????????????????????????????????? | | ????????????????????????????????????????????????? | | ????????????????????????????????????????????????? | | ????????????????????????????????????????????????? | | | | | | | +----------------------------------------------------+ Best States ------------- Heat Dissipation 39 Energy Generation 14 Energy Capacity 250 Matter Stores 300 Matter Capacity 300 Sight Range 16 Terrain Scan Density 10 Evasion (%) 55 Recoil Reduction 2 Item Schematics ----------------- None Robot Schematics ------------------ None Fabricated ------------ Nothing Repaired ---------- Nothing Alien Tech Used ----------------- None Achievements -------------- None Challenges ------------ None Game ------ Seed MissileKineticRay Manual? 0 Play Time 00:14:38 Cumulative 34.9 hours Start 2025.10.19 @ 13:39:43 End 2025.10.19 @ 13:52:16 Sessions 1 Manual Loads 0 Difficulty Rogue Special Mode None Game No. 86 Rogue 86 Adventurer 0 Explorer 0 Win Type - Total 0 Types 0/0/0/0/0/0/0/0/0/0 Lore% 23 Gallery% 32 Achievement% 29 Wizard Run 0 Options --------- Layout 2 ASCII 0 Keyboard 0 Movement Numpad Keybinds 0 Fullscreen 1 Font 24/Smallcaps Map View 50x44 Zoom Use 0% Tactical HUD 0 Map Filters NONE Filters NONE Steam 1 RUN: 6644b2cf-451c-4a9e-adf4-0851bae568e8